fUSD/lending_fUSD_20260123
["ID","MTS","AMOUNT","RATE_DAILY","PERIOD"]
[403071428,1769127990955,181.20441342,0.00015445,2]
[403071429,1769127996329,8876.92844358,0.0001551,2]
[403071430,1769127996357,10000.01,0.0001551,2]
[403071431,1769127996385,8296.18000828,0.0001551,2]
[403071448,1769128084937,150.0,0.00015335,2]
[403071449,1769128085094,150.0,0.0001539,2]
[403071450,1769128085126,500.0,0.00015335,2]
[403071451,1769128085255,200.0,0.00015445,2]
[403071453,1769128085290,500.0,0.0001539,2]
[403071457,1769128085392,203.82999172,0.00015445,2]
[403071459,1769128085416,296.17000828,0.00015445,2]
[403071462,1769128085497,500.0,0.00015499,2]
[403071464,1769128085553,150.0,0.00015335,2]
[403071466,1769128085584,150.0,0.00015335,2]
[403071470,1769128085739,150.0,0.00015335,2]
[403071471,1769128085812,200.0,0.0001539,2]
[403071472,1769128085910,150.0,0.0001539,2]
[403071473,1769128085976,150.0,0.00015335,2]
[403071477,1769128086098,200.0,0.00015445,2]
[403071502,1769128111705,8053.83999172,0.00015,2]
[403071503,1769128111731,8043.88835677,0.00015,2]
[403071511,1769128169146,623.31,0.00015199,2]
[403071515,1769128217155,150.60266651,0.000155,2]
[403071524,1769128231587,-280.0,0.00015554,2]
[403071526,1769128231596,-150.0,0.00015554,2]
[403071527,1769128231606,-292.36869297,0.00015594,2]
[403071528,1769128231617,-250.0,0.00015594,2]
[403071529,1769128231627,-1200.0,0.000156,2]
[403071530,1769128231638,-300.0,0.000156,2]
[403071531,1769128231647,-300.0,0.000156,2]
[403071532,1769128231657,-300.0,0.000156,2]
[403071533,1769128231666,-500.0,0.00015601,2]
[403071534,1769128231675,-500.0,0.00015601,2]
[403071535,1769128231684,-500.0,0.00015601,2]
[403071536,1769128231693,-500.0,0.00015601,2]
[403071537,1769128231702,-500.0,0.00015601,2]
[403071538,1769128231711,-164.64,0.00015602,2]
[403071539,1769128231720,-300.0,0.00015608,2]
[403071540,1769128231730,-669.86,0.00015609,2]
[403071541,1769128231740,-500.0,0.00015609,2]
[403071542,1769128231750,-923.71300875,0.00015609,2]
[403071543,1769128231761,-500.0,0.00015609,2]
[403071544,1769128231770,-500.0,0.00015609,2]
[403071545,1769128231779,-500.0,0.00015609,2]
[403071546,1769128231788,-500.0,0.00015609,2]
[403071547,1769128231796,-500.0,0.00015609,2]
[403071548,1769128231805,-500.0,0.00015609,2]
[403071549,1769128231814,-500.0,0.00015609,2]
[403071550,1769128231824,-500.0,0.00015609,2]
[403071551,1769128231834,-500.0,0.00015609,2]
[403071552,1769128231843,-500.0,0.00015609,2]
[403071553,1769128231852,-500.0,0.00015609,2]
[403071554,1769128231862,-500.0,0.00015609,2]
[403071556,1769128231870,-500.0,0.00015609,2]
[403071557,1769128231879,-500.0,0.00015609,2]
[403071558,1769128231888,-500.0,0.00015609,2]
[403071559,1769128231897,-500.0,0.00015609,2]
[403071560,1769128231906,-500.0,0.00015609,2]
[403071561,1769128231915,-500.0,0.00015609,2]
[403071562,1769128231925,-500.0,0.00015609,2]
[403071563,1769128231934,-500.0,0.00015609,2]
[403071564,1769128231943,-500.0,0.00015609,2]
[403071565,1769128231951,-500.0,0.00015609,2]
[403071566,1769128231961,-500.0,0.00015609,2]
[403071568,1769128231970,-500.0,0.00015609,2]
[403071570,1769128231979,-500.0,0.00015609,2]
[403071572,1769128231988,-500.0,0.00015609,2]
[403071574,1769128231997,-500.0,0.00015609,2]
[403071576,1769128232006,-500.0,0.00015609,2]
[403071578,1769128232015,-500.0,0.00015609,2]
[403071580,1769128232025,-500.0,0.00015609,2]
[403071581,1769128232035,-500.0,0.00015609,2]
[403071583,1769128232045,-500.0,0.00015609,2]
[403071585,1769128232054,-500.0,0.00015609,2]
[403071587,1769128232063,-500.0,0.00015609,2]
[403071589,1769128232073,-500.0,0.00015609,2]
[403071591,1769128232083,-500.0,0.00015609,2]
[403071593,1769128232093,-365.96766448,0.00015609,2]
[403071595,1769128232103,-500.0,0.00015609,2]
[403071597,1769128232120,-500.0,0.00015609,2]
[403071599,1769128232129,-500.0,0.00015609,2]
[403071601,1769128232139,-500.0,0.00015609,2]
[403071603,1769128232147,-500.0,0.00015609,2]
[403071604,1769128232158,-200.0,0.00015609,2]
[403071605,1769128232168,-7853.68022658,0.0001561,2]
[403071606,1769128232176,-1248.69114802,0.0001561,2]
[403071607,1769128232186,-285.70443904,0.0001561,2]
[403071608,1769128232195,-1557.11500022,0.0001561,2]
[403071609,1769128232204,-63432.20682032,0.0001561,2]
[403071610,1769128232216,-99764.36782455,0.0001561,2]
[403071611,1769128232225,-542.89957297,0.0001561,2]
[403071612,1769128232234,-27173.11845178,0.00015776,2]
[403071613,1769128232243,-669.86,0.00015883,2]
[403071614,1769128232252,-151.0,0.00015887,2]
[403071615,1769128232262,-500.0,0.00015909,2]
[403071616,1769128232271,-500.0,0.00015909,2]
[403071617,1769128232280,-604.54147957,0.00015909,2]
[403071618,1769128232289,-500.0,0.00015909,2]
[403071619,1769128232299,-500.0,0.00015909,2]
[403071620,1769128232308,-500.0,0.00015909,2]
[403071621,1769128232316,-508.16450939,0.00015909,2]
[403071622,1769128232326,-500.0,0.00015909,2]
[403071623,1769128232335,-500.0,0.00015909,2]
[403071624,1769128232344,-500.0,0.00015909,2]
[403071625,1769128232353,-500.0,0.00015909,2]
[403071626,1769128232362,-500.0,0.00015909,2]
[403071627,1769128232372,-500.0,0.00015909,2]
[403071628,1769128232381,-500.0,0.00015909,2]
[403071629,1769128232390,-667.43,0.00015909,2]
[403071630,1769128232399,-667.43,0.00015909,2]
[403071631,1769128232408,-667.43,0.00015909,2]
[403071632,1769128232418,-667.43,0.00015909,2]
[403071633,1769128232427,-962.89,0.00015909,2]
[403071634,1769128232436,-962.89,0.00015909,2]
[403071635,1769128232445,-962.89,0.00015909,2]
[403071636,1769128232454,-962.89,0.00015909,2]
[403071637,1769128232463,-500.0,0.00015909,2]
[403071638,1769128232472,-500.0,0.00015909,2]
[403071639,1769128232481,-500.0,0.00015909,2]
[403071640,1769128232489,-249.84105612,0.00015909,2]
[403071641,1769128232499,-500.0,0.00015909,2]
[403071642,1769128232508,-500.0,0.00015909,2]
[403071643,1769128232517,-500.0,0.00015909,2]
[403071644,1769128232527,-500.0,0.00015909,2]
[403071645,1769128232536,-500.0,0.00015909,2]
[403071646,1769128232544,-500.0,0.00015909,2]
[403071647,1769128232553,-500.0,0.00015909,2]
[403071648,1769128232563,-500.0,0.00015909,2]
[403071649,1769128232572,-500.0,0.00015909,2]
[403071650,1769128232583,-500.0,0.00015909,2]
[403071651,1769128232592,-500.0,0.00015909,2]
[403071652,1769128232601,-500.0,0.00015909,2]
[403071653,1769128232611,-391.13615638,0.00015909,2]
[403071654,1769128232620,-500.0,0.00015909,2]
[403071655,1769128232629,-500.0,0.00015909,2]
[403071656,1769128232638,-500.0,0.00015909,2]
[403071657,1769128232647,-282.39883128,0.00015909,2]
[403071658,1769128232655,-500.0,0.00015909,2]
[403071659,1769128232664,-500.0,0.00015909,2]
[403071660,1769128232673,-500.0,0.00015909,2]
[403071661,1769128232682,-500.0,0.00015909,2]
[403071662,1769128232691,-500.0,0.00015909,2]
[403071663,1769128232699,-629.86192957,0.00015909,2]
[403071664,1769128232708,-27173.11845178,0.00016041,2]
[403071665,1769128232717,-7977.59330299,0.000161,2]
[403071666,1769128232727,-669.86,0.00016157,2]
[403071667,1769128232736,-500.0,0.00016194,2]
[403071668,1769128232745,-253.33435214,0.00016194,2]
[403071669,1769128232754,-159.36473585,0.00016194,2]
[403071670,1769128232762,-444.97280717,0.00016194,2]
[403071671,1769128232771,-14046.82329779,0.00016195,2]
[403071672,1769128232783,-374.7451931,0.00016195,2]
[403071673,1769128232833,-469.5,0.00016195,2]
[403071674,1769128232844,-1446.7295,0.00016195,2]
[403071675,1769128232855,-18779.6082815,0.00016195,2]
[403071676,1769128232866,-18821.69278548,0.00016195,2]
[403071677,1769128232883,-10323.08339662,0.00016195,2]
[403071678,1769128232894,-14598.1232119,0.00016195,2]
[403071679,1769128232904,-663.7357518,0.00016195,2]
[403071680,1769128232915,-11260.45347406,0.00016195,2]
[403071681,1769128232926,-9412.5,0.00016195,2]
[403071682,1769128232938,-995.88708944,0.00016195,2]
[403071689,1769128237733,-6734.89884,0.00016195,2]
[403071690,1769128237758,-299.49999525,0.00016195,2]
[403071691,1769128237839,-35169.23763564,0.00016195,2]
[403071692,1769128237848,-161856.75,0.000162,5]
[403071693,1769128237858,-7977.59330295,0.000163,2]
[403071694,1769128237868,-27173.11845178,0.00016307,2]
[403071695,1769128237878,-669.86,0.00016431,2]
[403071696,1769128237888,-500.0,0.00016438,2]
[403071697,1769128237903,-500.0,0.00016438,2]
[403071698,1769128237926,-500.0,0.00016438,2]
[403071699,1769128237941,-500.0,0.00016438,2]
[403071700,1769128237953,-500.0,0.00016438,2]
[403071701,1769128237962,-500.0,0.00016438,2]
[403071702,1769128237973,-500.0,0.00016438,2]
[403071703,1769128237982,-500.0,0.00016438,2]
[403071704,1769128237995,-500.0,0.00016438,2]
[403071705,1769128238005,-500.0,0.00016438,2]
[403071706,1769128238016,-500.0,0.00016438,2]
[403071707,1769128238026,-500.0,0.00016438,2]
[403071708,1769128238037,-500.0,0.00016438,2]
[403071709,1769128238048,-500.0,0.00016438,2]
[403071710,1769128238059,-500.0,0.00016438,2]
[403071711,1769128238071,-500.0,0.00016438,2]
[403071712,1769128238080,-500.0,0.00016438,2]
[403071713,1769128238091,-500.0,0.00016438,2]
[403071714,1769128238100,-500.0,0.00016438,2]
[403071715,1769128238112,-500.0,0.00016438,2]
[403071716,1769128238122,-500.0,0.00016438,2]
[403071717,1769128238133,-605.1349732,0.00016438,2]
[403071718,1769128238143,-500.0,0.00016438,2]
[403071719,1769128238153,-500.0,0.00016438,2]
[403071720,1769128238163,-551.34973203,0.00016438,2]
[403071721,1769128238172,-7977.59330295,0.000165,2]
[403071722,1769128238181,-150.0,0.00016505,2]
[403071723,1769128238191,-1708.99,0.00016544,2]
[403071724,1769128238200,-150.0,0.0001656,2]
[403071725,1769128238210,-27173.11845178,0.00016572,2]
[403071726,1769128238220,-915.62,0.00016584,2]
[403071727,1769128238229,-360.2415698,0.000166,2]
[403071728,1769128238239,-290.2,0.00016613,2]
[403071729,1769128238248,-150.0,0.00016615,2]
[403071730,1769128238259,-500.0,0.00016646,2]
[403071731,1769128238268,-150.0,0.00016669,2]
[403071732,1769128238278,-500.0,0.00016697,2]
[403071733,1769128238287,-7977.59330295,0.000167,2]
[403071734,1769128238297,-669.86,0.00016705,2]
[403071735,1769128238306,-231.5474637,0.00016724,2]
[403071736,1769128238315,-510.0,0.00016732,2]
[403071737,1769128238325,-500.0,0.00016752,2]
[403071738,1769128238334,-1000.0,0.00016764,2]
[403071739,1769128238344,-200.0,0.00016779,2]
[403071740,1769128238354,-500.0,0.00016807,2]
[403071741,1769128238363,-27173.11845178,0.00016838,2]
[403071742,1769128238373,-500.0,0.00016861,2]
[403071743,1769128238382,-7977.59330295,0.000169,2]
[403071744,1769128238391,-500.0,0.00016916,2]
[403071745,1769128238401,-500.0,0.00016971,2]
[403071746,1769128238411,-669.86,0.00016979,2]
[403071747,1769128238420,-250.0,0.00017,2]
[403071748,1769128238429,-500.0,0.00017026,2]
[403071749,1769128238439,-281.87870484,0.00017053,2]
[403071750,1769128238448,-420.0,0.00017063,2]
[403071751,1769128238457,-420.0,0.00017063,2]
[403071752,1769128238467,-203.0,0.00017074,2]
[403071753,1769128238476,-18219.0,0.00017075,2]
[403071754,1769128238486,-500.0,0.00017099,2]
[403071755,1769128238495,-500.0,0.00017099,2]
[403071756,1769128238504,-748.11534687,0.00017099,2]
[403071757,1769128238513,-500.0,0.00017099,2]
[403071758,1769128238522,-500.0,0.00017099,2]
[403071759,1769128238532,-500.0,0.00017099,2]
[403071760,1769128238542,-500.0,0.00017099,2]
[403071761,1769128238551,-500.0,0.00017099,2]
[403071762,1769128238561,-500.0,0.00017099,2]
[403071763,1769128238571,-500.0,0.00017099,2]
[403071764,1769128238580,-500.0,0.00017099,2]
[403071765,1769128238590,-500.0,0.00017099,2]
[403071766,1769128238599,-500.0,0.00017099,2]
[403071767,1769128238609,-500.0,0.00017099,2]
[403071768,1769128238618,-500.0,0.00017099,2]
[403071769,1769128238627,-500.0,0.00017099,2]
[403071770,1769128238636,-500.0,0.00017099,2]
[403071771,1769128238644,-500.0,0.00017099,2]
[403071772,1769128238654,-500.0,0.00017099,2]
[403071773,1769128238663,-500.0,0.00017099,2]
[403071774,1769128238672,-500.0,0.00017099,2]
[403071775,1769128238681,-500.0,0.00017099,2]
[403071776,1769128238690,-500.0,0.00017099,2]
[403071777,1769128238699,-500.0,0.00017099,2]
[403071778,1769128238708,-500.0,0.00017099,2]
[403071779,1769128238717,-500.0,0.00017099,2]
[403071780,1769128238726,-500.0,0.00017099,2]
[403071781,1769128238735,-534.86645949,0.00017099,2]
[403071782,1769128238744,-500.0,0.00017099,2]
[403071783,1769128238753,-500.0,0.00017099,2]
[403071784,1769128238762,-500.0,0.00017099,2]
[403071785,1769128238772,-500.0,0.00017099,2]
[403071786,1769128238781,-500.0,0.00017099,2]
[403071787,1769128238790,-500.0,0.00017099,2]
[403071788,1769128238799,-500.0,0.00017099,2]
[403071789,1769128238808,-500.0,0.00017099,2]
[403071790,1769128238817,-500.0,0.00017099,2]
[403071791,1769128238826,-500.0,0.00017099,2]
[403071792,1769128238835,-500.0,0.00017099,2]
[403071793,1769128238844,-151.0,0.00017099,2]
[403071794,1769128238853,-151.0,0.00017099,2]
[403071795,1769128238862,-151.0,0.00017099,2]
[403071796,1769128238871,-151.0,0.00017099,2]
[403071797,1769128238880,-151.0,0.00017099,2]
[403071798,1769128238890,-151.0,0.00017099,2]
[403071799,1769128238899,-151.0,0.00017099,2]
[403071800,1769128238908,-151.0,0.00017099,2]
[403071801,1769128238917,-151.0,0.00017099,2]
[403071802,1769128238926,-151.0,0.00017099,2]
[403071803,1769128238935,-151.0,0.00017099,2]
[403071804,1769128238945,-3210.0,0.00017099,2]
[403071805,1769128238954,-250.0,0.00017099,2]
[403071806,1769128238967,-250.0,0.00017099,2]
[403071807,1769128238982,-250.0,0.00017099,2]
[403071808,1769128238999,-250.0,0.00017099,2]
[403071809,1769128239011,-250.0,0.00017099,2]
[403071810,1769128239020,-289.88191886,0.00017099,2]
[403071811,1769128239032,-7977.59330295,0.000171,2]
[403071812,1769128239042,-27173.11845178,0.00017103,2]
[403071813,1769128239052,-250.0,0.0001711,2]
[403071814,1769128239405,-4524.0,0.00017136,2]
[403071815,1769128239421,-12626.81579662,0.00017138,2]
[403071816,1769128239431,-1569.0,0.00017149,2]
[403071817,1769128239440,-1680.0,0.00017149,2]
[403071818,1769128239451,-193.0,0.00017153,2]
[403071819,1769128239460,-250.0,0.00017153,2]
[403071820,1769128239469,-2500.0,0.00017153,2]
[403071821,1769128239479,-300.0,0.00017153,2]
[403071822,1769128239488,-5000.0,0.00017153,2]
[403071823,1769128239498,-300.0,0.00017153,2]
[403071824,1769128239507,-195.0,0.00017153,2]
[403071825,1769128239517,-200.0,0.00017153,2]
[403071826,1769128239530,-202.11619681,0.00017153,2]
[403071827,1769128239539,-600.0,0.00017153,2]
[403071828,1769128239548,-667.43,0.00017226,2]
[403071829,1769128239558,-962.89,0.00017226,2]
[403071830,1769128239567,-500.0,0.00017226,2]
[403071831,1769128239577,-500.0,0.00017226,2]
[403071832,1769128239586,-669.86,0.00017253,2]
[403071833,1769128239595,-10561.84315102,0.00017274,2]
[403071834,1769128239605,-239.0,0.00017276,2]
[403071835,1769128239615,-7977.59330295,0.000173,2]
[403071836,1769128239624,-27173.11845178,0.00017369,2]
[403071837,1769128239633,-1657.50982495,0.00017376,2]
[403071838,1769128239643,-204.66407085,0.00017387,2]
[403071839,1769128239652,-1000.0,0.00017393,2]
[403071840,1769128239662,-281.87870482,0.00017477,2]
[403071841,1769128239671,-3302.94097839,0.000175,3]
[403071842,1769128239680,-1604.04104564,0.000175,2]
[403071843,1769128239690,-7977.59330295,0.000175,2]
[403071844,1769128239699,-669.88,0.00017527,2]
[403071845,1769128239708,-510.11481069,0.00017555,2]
[403071846,1769128239718,-8912.97263101,0.00017565,2]
[403071847,1769128239729,-27173.11845178,0.00017634,2]
[403071849,1769128239739,-1857.57020595,0.0001764,2]
[403071850,1769128239748,-1075.64649851,0.00017643,2]
[403071851,1769128239758,-2838.64812796,0.00017643,2]
[403071852,1769128239767,-5007.71177343,0.00017643,2]
[403071853,1769128239777,-500.0,0.00017644,2]
[403071854,1769128239787,-500.0,0.00017673,2]
[403071855,1769128239796,-215.05133739,0.00017673,2]
[403071856,1769128239806,-500.0,0.00017673,2]
[403071857,1769128239815,-500.0,0.00017673,2]
[403071858,1769128239825,-490.42703734,0.00017673,2]
[403071859,1769128239834,-500.0,0.00017673,2]
[403071860,1769128239844,-500.0,0.00017673,2]
[403071861,1769128239853,-500.0,0.00017673,2]
[403071862,1769128239863,-500.0,0.00017673,2]
[403071863,1769128239872,-514.13913965,0.00017673,2]
[403071864,1769128239881,-500.0,0.00017673,2]
[403071865,1769128239890,-546.39725778,0.00017673,2]
[403071866,1769128239899,-500.0,0.00017673,2]
[403071867,1769128239909,-1000.0,0.000177,2]
[403071868,1769128239918,-7977.59330295,0.000177,2]
[403071869,1769128239927,-500.0,0.00017708,2]
[403071870,1769128239937,-1569.0,0.00017721,2]
[403071871,1769128239946,-5475.51,0.00017728,2]
[403071872,1769128239955,-150.99,0.00017728,2]
[403071873,1769128239964,-1524.15,0.00017728,2]
[403071874,1769128239973,-9999.99,0.00017728,2]
[403071875,1769128239983,-332.97,0.00017728,2]
[403071876,1769128239992,-9999.99,0.00017728,2]
[403071877,1769128240003,-1569.0,0.0001773,2]
[403071878,1769128240013,-151.0,0.00017789,2]
[403071879,1769128240023,-151.0,0.00017789,2]
[403071880,1769128240032,-151.0,0.00017789,2]
[403071881,1769128240041,-1569.0,0.0001779,2]
[403071882,1769128240051,-1345.888,0.000178,2]
[403071883,1769128240062,-1000.0,0.000178,2]
[403071884,1769128240071,-405.738774,0.000178,2]
[403071885,1769128240081,-150.0,0.00017808,2]
[403071886,1769128240090,-405.73877397,0.00017817,2]
[403071887,1769128240100,-5767.21416178,0.0001783,2]
[403071888,1769128240122,-405.73877397,0.00017833,2]
[403071889,1769128240132,-405.73877397,0.0001785,2]
[403071890,1769128240142,-1000.32393849,0.0001786,2]
[403071891,1769128240154,-150.0,0.00017863,2]
[403071892,1769128240164,-405.73877397,0.00017867,2]
[403071893,1769128240174,-405.73877397,0.00017883,2]
[403071894,1769128240187,-25000.0,0.000179,3]
[403071895,1769128240196,-1000.0,0.000179,2]
[403071897,1769128240207,-623.4318,0.000179,2]
[403071898,1769128240218,-33239.6832,0.000179,2]
[403071899,1769128240228,-171.51013392,0.000179,2]
[403071900,1769128240238,-4686.76452028,0.000179,2]
[403071901,1769128240248,-27173.11845178,0.000179,2]
[403071902,1769128240258,-1000.0,0.000179,2]
[403071903,1769128240268,-26682.59430966,0.000179,2]
[403071904,1769128240278,-7977.59330295,0.000179,2]
[403071905,1769128240288,-405.73877397,0.000179,2]
[403071906,1769128240297,-2497.40920944,0.000179,2]
[403071908,1769128240307,-15495.85446133,0.000179,2]
[403071909,1769128240316,-281.87870482,0.000179,2]
[403071910,1769128240326,-380.45655404,0.000179,3]
[403071911,1769128240337,-500.0,0.000179,2]
[403071912,1769128240347,-500.0,0.000179,2]
[403071913,1769128240357,-500.0,0.000179,2]
[403071914,1769128240367,-500.0,0.000179,2]
[403071915,1769128240376,-500.0,0.000179,2]
[403071916,1769128240386,-500.0,0.000179,2]
[403071917,1769128240396,-500.0,0.000179,2]
[403071918,1769128240407,-500.0,0.000179,2]
[403071919,1769128240416,-500.0,0.000179,2]
[403071920,1769128240427,-500.0,0.000179,2]
[403071921,1769128240437,-500.0,0.000179,2]
[403071922,1769128240446,-500.0,0.000179,2]
[403071923,1769128240456,-500.0,0.000179,2]
[403071924,1769128240466,-500.0,0.000179,2]
[403071925,1769128240476,-500.0,0.000179,2]
[403071926,1769128240486,-439.94314696,0.000179,2]
[403071927,1769128240495,-150.0,0.00017918,2]
[403071928,1769128240504,-690.0,0.00017934,2]
[403071929,1769128240514,-157.44687871,0.00017963,2]
[403071930,1769128240524,-150.0,0.00017972,2]
[403071931,1769128240533,-30935.0,0.00017973,2]
[403071932,1769128240543,-500.0,0.00017982,2]
[403071933,1769128240552,-157.44687871,0.0001799,2]
[403071934,1769128240562,-157.44687871,0.0001799,2]
[403071935,1769128240571,-15424.3862089,0.00017992,2]
[403071936,1769128240582,-100986.2221498,0.00017992,2]
[403071937,1769128240594,-264.11485995,0.00017999,2]
[403071938,1769128240603,-1101.25231464,0.00017999,5]
[403071939,1769128240613,-1101.25231464,0.00017999,5]
[403071940,1769128240623,-667.43,0.00017999,2]
[403071941,1769128240632,-667.43,0.00017999,2]
[403071942,1769128240641,-667.43,0.00017999,2]
[403071943,1769128240651,-667.43,0.00017999,2]
[403071944,1769128240660,-667.43,0.00017999,2]
[403071945,1769128240669,-667.43,0.00017999,2]
[403071946,1769128240679,-667.43,0.00017999,2]
[403071947,1769128240689,-667.43,0.00017999,2]
[403071948,1769128240698,-667.43,0.00017999,2]
[403071949,1769128240708,-667.43,0.00017999,2]
[403071950,1769128240717,-667.43,0.00017999,2]
[403071951,1769128240727,-667.43,0.00017999,2]
[403071952,1769128240736,-667.43,0.00017999,2]
[403071953,1769128240747,-667.43,0.00017999,2]
[403071954,1769128240757,-667.43,0.00017999,2]
[403071955,1769128240766,-667.43,0.00017999,2]
[403071956,1769128240776,-667.43,0.00017999,2]
[403071957,1769128240785,-667.43,0.00017999,2]
[403071958,1769128240794,-667.46993185,0.00017999,2]
[403071959,1769128240804,-962.89,0.00017999,2]
[403071960,1769128240813,-962.89,0.00017999,2]
[403071961,1769128240822,-962.89,0.00017999,2]
[403071962,1769128240831,-962.89,0.00017999,2]
[403071963,1769128240840,-962.89,0.00017999,2]
[403071964,1769128240849,-962.89,0.00017999,2]
[403071965,1769128240858,-962.89,0.00017999,2]
[403071966,1769128240867,-962.89,0.00017999,2]
[403071967,1769128240877,-962.89,0.00017999,2]
[403071968,1769128240887,-962.89,0.00017999,2]
[403071969,1769128240896,-962.89,0.00017999,2]
[403071970,1769128240906,-962.89,0.00017999,2]
[403071971,1769128240917,-962.89,0.00017999,2]
[403071972,1769128240928,-962.89,0.00017999,2]
[403071973,1769128240938,-962.89,0.00017999,2]
[403071974,1769128240947,-962.89,0.00017999,2]
[403071975,1769128240956,-962.89,0.00017999,2]
[403071976,1769128240965,-962.89,0.00017999,2]
[403071977,1769128240975,-963.08215791,0.00017999,2]
[403071978,1769128240984,-500.0,0.00017999,2]
[403071979,1769128240995,-521.75,0.00017999,2]
[403071980,1769128241005,-11866.44539761,0.00017999,2]
[403071981,1769128241014,-300.0,0.00017999,2]
[403071982,1769128241024,-366.59852564,0.00017999,2]
[403071983,1769128241036,-3098.0,0.00018,2]
[403071984,1769128241045,-869042.14581357,0.00018,2]
[403071985,1769128241055,-1511128.97396187,0.00018,2]
[403071986,1769128241066,-1190.3363288,0.00018,2]
[403071987,1769128241076,-150.0,0.00018,2]
[403071988,1769128241086,-151.0,0.00018,2]
[403071989,1769128241095,-11238.4271787,0.00018,2]
[403071990,1769128241105,-7843.0405641,0.00018,2]
[403071991,1769128241118,-457995.87690435,0.00018,2]
[403071992,1769128241490,-576.55739814,0.00018,2]
[403071993,1769128242166,-8779.80959135,0.00018,2]
[403071994,1769128242178,-7986025.65702166,0.00018,2]
[403071997,1769128242816,-260.34861082,0.00018,2]
[403071998,1769128243067,-472.60107378,0.00018,2]
[403072002,1769128245740,-784.0,0.000179,2]
[403072009,1769128315611,500.0,0.00015454,2]
[403072010,1769128321368,682.20897672,0.0001551,2]
[403072011,1769128321392,3644.43002328,0.0001551,2]
[403072012,1769128336069,6355.57997672,0.00015509,2]
[403072013,1769128336096,10000.01,0.00015509,2]
[403072014,1769128336124,10000.01,0.00015509,2]
[403072015,1769128336157,10000.01,0.00015509,2]
[403072016,1769128336184,10000.01,0.00015509,2]
[403072017,1769128336212,10000.01,0.00015509,2]
[403072018,1769128336241,10000.01,0.00015509,2]
[403072019,1769128336268,10000.01,0.00015509,2]
[403072020,1769128336294,10000.01,0.00015509,2]
[403072021,1769128336321,10000.01,0.00015509,2]
[403072022,1769128336804,-620.96148733,0.00015509,2]
[403072023,1769128341260,-267.70382205,0.00015509,2]
[403072024,1769128342781,-151.96074465,0.00015509,2]
[403072025,1769128345674,-225.26992441,0.00015509,2]
[403072026,1769128349627,-625.97183255,0.00015509,2]
[403072027,1769128352252,-284.42714575,0.00015509,2]
[403072028,1769128353706,500.0,0.00015508,2]
[403072029,1769128353815,177.3340465,0.00015508,2]
[403072030,1769128353852,161.48096502,0.00015508,2]
[403072031,1769128354584,-207.16504362,0.00015509,2]
[403072032,1769128355214,353.13150247,0.00015508,2]
[403072033,1769128355266,650.62540531,0.00015508,2]
[403072034,1769128355343,650.62540531,0.00015508,2]
[403072035,1769128355412,650.62540531,0.00015508,2]
[403072036,1769128355470,650.62540531,0.00015508,2]
[403072037,1769128355530,650.62540531,0.00015508,2]
[403072038,1769128355584,650.62540531,0.00015508,2]
[403072039,1769128355638,650.62540531,0.00015508,2]
[403072040,1769128356121,650.62540531,0.00015508,2]